bitfinex-derivatives/quotes_ETHF0:USTF0_20250314
["timestamp","ask_amount","ask_price","bid_price","bid_amount"]
[1741937874112,1.3933,1897.7,1897.6,3.86104]
[1741937874314,2.44729,1897.7,1897.6,3.86104]
[1741937878917,1.3933,1897.7,1897.6,3.86104]
[1741937880624,2.245,1897.9,1897.8,1.05393]
[1741937880925,3.5998,1897.9,1897.8,1.05393]
[1741937881118,1.3548,1897.9,1897.8,1.05393]
[1741937881316,0.7131,1898.1,1898.0,1.05382]
[1741937881522,7.00972,1898.2,1897.9,1.3402]
[1741937881828,7.00972,1898.2,1898.1,1.05376]
[1741937882015,5.956,1898.2,1897.9,2.7282]
[1741937882222,1.0538,1898.1,1898.0,2.44971205]
[1741937885135,1.0538,1898.1,1898.0,1.39592205]
[1741937885325,1.0538,1898.1,1898.0,2.44974205]
[1741937885931,1.0538,1898.1,1898.0,0.00792205]
[1741937889038,1.0538,1898.1,1898.0,1.34542205]
[1741937889837,1.0538,1898.1,1898.0,0.00792205]
[1741937891946,1.0538,1898.1,1898.0,1.35272205]
[1741937894847,2.4145,1898.1,1898.0,2.40654205]
[1741937895041,2.4145,1898.1,1898.0,1.35272205]
[1741937895947,2.4145,1898.1,1898.0,2.40654205]
[1741937896141,4.6615,1898.1,1898.0,2.40654205]
[1741937896341,3.6077,1898.1,1898.0,2.40654205]
[1741937896545,4.66146,1898.1,1898.0,2.40654205]
[1741937896743,3.6077,1898.1,1898.0,2.40654205]
[1741937896949,4.66146,1898.1,1898.0,2.40654205]
[1741937899044,4.66146,1898.1,1898.0,1.35272205]
[1741937899249,4.66146,1898.1,1898.0,2.40654205]
[1741937899752,3.6077,1898.1,1898.0,2.40654205]
[1741937900747,4.66146,1898.1,1898.0,2.40654205]
[1741937903943,3.6077,1898.1,1898.0,2.40654205]
[1741937904252,4.66146,1898.1,1898.0,2.40654205]
[1741937905351,2.41446,1898.1,1898.0,2.40654205]
[1741937905550,2.245,1898.2,1898.0,1.35272205]
[1741937905850,4.66011,1898.2,1898.1,2.41216]
[1741937906051,4.66011,1898.2,1898.1,3.09916]
[1741937909252,3.6064,1898.2,1898.1,3.09916]
[1741937909449,5.81348643,1898.4,1898.1,2.0454]
[1741937909755,3.29667,1898.3,1898.2,1.05371]
[1741937909948,3.6054,1898.3,1898.2,1.05371]
[1741937910148,4.65905,1898.3,1898.2,1.05371]
[1741937911149,6.1054,1898.3,1897.6,5.978]
[1741937911355,3.2078,1898.1,1897.6,3.9222]
[1741937911656,1.36,1898.0,1897.9,1.05388]
[1741937911952,2.41382,1898.0,1897.8,3.2078]
[1741937912149,1.05371,1898.2,1897.9,0.7144]
[1741937912354,1.06170205,1898.1,1897.9,0.7144]
[1741937912547,1.36,1898.0,1897.9,0.7144]
[1741937912861,0.00792205,1898.1,1897.9,1.76828]
[1741937913151,1.36792205,1898.1,1897.9,1.76828]
[1741937913555,2.42169205,1898.1,1897.9,1.76828]
[1741937913756,1.36792205,1898.1,1897.9,1.76828]
[1741937913957,1.36792205,1898.1,1897.9,0.7144]
[1741937913958,2.42171205,1898.1,1897.9,0.7144]
[1741937914148,1.05382,1898.0,1897.9,0.7144]
[1741937914349,2.47452,1898.0,1897.9,0.7144]
[1741937915446,1.4207,1898.0,1897.9,0.7144]
[1741937915755,1.06170205,1898.1,1897.9,1.76828]
[1741937916061,2.48240205,1898.1,1897.9,1.76828]
[1741937916260,1.05382,1898.0,1897.9,0.7144]
[1741937916653,1.42862205,1898.1,1897.8,3.2078]
[1741937916860,1.4207,1897.9,1897.8,3.2078]
[1741937917159,1.4207,1897.9,1897.8,3.8583]
[1741937917360,1.4207,1897.9,1897.8,4.91223]
[1741937918057,2.47458,1897.9,1897.8,3.8583]
[1741937918246,2.47458,1897.9,1897.8,0.6505]
[1741937918556,1.05393,1897.8,1897.7,0.00792205]
[1741937918746,3.04743,1897.8,1897.7,0.00792205]
[1741937919159,6.25523,1897.8,1897.7,0.00792205]
[1741937922155,3.04743,1897.8,1897.7,0.00792205]
[1741937924662,3.04743,1897.8,1897.7,0.65822205]
[1741937924965,3.04743,1897.8,1897.7,1.99332205]
[1741937926764,2.39273,1897.8,1897.7,1.99332205]
[1741937927165,4.67073,1897.8,1897.7,1.99332205]
[1741937930765,4.67073,1897.8,1897.7,3.04731205]
[1741937930962,3.6168,1897.8,1897.7,3.04731205]
[1741937931271,0.00792205,1898.1,1898.0,1.05382]
[1741937931568,3.33968205,1898.1,1898.0,1.05382]
[1741937931766,0.00792205,1898.1,1898.0,1.05382]
[1741937932061,0.00792205,1898.1,1898.0,1.73292]
[1741937932560,1.06168205,1898.1,1898.0,1.73292]
[1741937932765,1.35522205,1898.1,1898.0,3.09882]
[1741937933266,2.40898205,1898.1,1898.0,3.09882]
[1741937934368,1.35522205,1898.1,1898.0,3.09882]
[1741937934663,2.40898205,1898.1,1898.0,3.09882]
[1741937936060,2.40898205,1898.1,1898.0,1.3659]
[1741937936569,1.05388,1897.9,1897.8,2.0348]
[1741937937060,1.05388,1897.9,1897.8,1.3451]
[1741937937262,5.45078,1897.9,1897.8,1.3451]
[1741937938467,4.73928,1897.9,1897.8,2.39903]
[1741937940166,3.6854,1897.9,1897.8,2.39903]
[1741937940764,4.73928,1897.9,1897.8,2.39903]
[1741937941272,4.73928,1897.9,1897.8,1.3451]
[1741937941472,3.6854,1897.9,1897.8,2.39903]
[1741937941773,4.73928,1897.9,1897.8,1.3451]
[1741937942957,1.05393,1897.8,1897.7,3.21572205]
[1741937943172,2.40813,1897.8,1897.7,5.63331205]
[1741937943465,2.40813,1897.8,1897.7,6.32601205]
[1741937944166,2.40813,1897.8,1897.7,5.27202205]
[1741937944366,2.40813,1897.8,1897.7,6.32601205]
[1741937946280,1.3542,1897.8,1897.7,6.32601205]
[1741937948076,3.33692,1897.9,1897.8,1.05393]
[1741937948273,4.71602,1897.9,1897.8,2.48023]
[1741937948582,5.96392205,1898.1,1898.0,1.05382]
[1741937948772,8.24392205,1898.1,1898.0,1.05382]
[1741937948969,8.96342205,1898.1,1898.0,1.05382]
[1741937949172,8.96342205,1898.1,1898.0,1.75152]
[1741937949576,7.73718205,1898.1,1898.0,1.75152]
[1741937949777,8.24492205,1898.1,1898.0,1.75152]
[1741937949979,8.24492205,1898.1,1898.0,3.17782]
[1741937950178,9.62402205,1898.1,1898.0,3.17782]
[1741937950878,10.67778205,1898.1,1898.0,3.17782]
[1741937951481,10.67778205,1898.1,1898.0,2.124]
[1741937951681,10.67778205,1898.1,1898.0,1.4263]
[1741937952180,4.72178205,1898.1,1898.0,1.4263]
[1741937952581,4.72178205,1898.1,1898.0,2.48012]
[1741937952876,4.72178205,1898.1,1898.0,1.4263]
[1741937954778,6.87582205,1898.1,1897.8,0.7046]
[1741937954979,1.05388,1897.9,1897.8,1.05391]
[1741937955180,1.05388,1897.9,1897.8,1.3162]
[1741937955379,2.37498,1897.9,1897.8,1.3162]
[1741937955787,1.3211,1897.9,1897.8,1.3162]
[1741937956080,1.3211,1897.9,1897.8,2.37013]
[1741937956275,1.3211,1897.9,1897.8,5.57793]
[1741937956480,3.34270205,1898.1,1898.0,1.05382]
[1741937956785,3.34270205,1898.1,1897.9,3.00664]
[1741937956786,2.95142205,1898.1,1897.9,3.00664]
[1741937956986,4.00524205,1898.1,1897.9,1.70854]
[1741937957186,1.05382,1898.0,1897.9,1.70854]
[1741937957882,2.40152,1898.0,1897.9,3.00664]
[1741937959084,1.3477,1898.0,1897.9,3.00664]
[1741937959486,1.3477,1898.0,1897.9,1.2981]
[1741937959689,2.40152,1898.0,1897.9,1.2981]
[1741937961784,1.05393,1897.9,1897.7,1.72197205]
[1741937961983,3.07283,1897.9,1897.8,2.40953]
[1741937963393,3.07283,1897.9,1897.8,1.3556]
[1741937964281,3.07283,1897.9,1897.8,2.40953]
[1741937964889,3.07283,1897.9,1897.8,1.3556]
[1741937965293,3.07283,1897.9,1897.8,2.40953]
[1741937966098,3.07283,1897.9,1897.8,1.3556]
[1741937966398,3.07283,1897.9,1897.8,2.40953]
[1741937966587,2.37003,1897.9,1897.8,2.40953]
[1741937966787,1.3161,1897.9,1897.8,5.61733]
[1741937967188,2.95142205,1898.1,1897.8,5.61733]
[1741937967189,2.95142205,1898.1,1897.8,4.5634]
[1741937967388,2.48962,1898.0,1897.9,3.11268]
[1741937967791,1.4358,1898.0,1897.9,3.11268]
[1741937967987,2.27892205,1898.1,1898.0,1.05382]
[1741937968292,2.27892205,1898.1,1898.0,6.30422]
[1741937968491,0.00792205,1898.1,1898.0,6.30422]
[1741937969302,1.35012205,1898.1,1898.0,6.30422]
[1741937969603,2.40388205,1898.1,1898.0,5.2504]
[1741937969805,2.03472205,1898.1,1898.0,6.30422]
[1741937970000,1.35012205,1898.1,1898.0,6.30422]
[1741937970200,2.40388205,1898.1,1898.0,6.30422]
[1741937970498,1.35012205,1898.1,1898.0,6.30422]
[1741937971203,2.40388205,1898.1,1898.0,5.2504]
[1741937971506,2.40388205,1898.1,1898.0,4.5535]
[1741937971707,3.08888205,1898.1,1898.0,4.5535]
[1741937972911,3.08888205,1898.1,1898.0,1.3457]
[1741937977813,1.05386,1898.0,1897.8,1.74851]
[1741937978107,4.65286,1898.0,1897.9,1.3604]
[1741937979507,3.599,1898.0,1897.9,2.41428]
[1741937979702,4.65282,1898.0,1897.9,2.41428]
[1741937980208,4.65282,1898.0,1897.9,1.3604]
[1741937980614,4.65282,1898.0,1897.9,3.13288]
[1741937981414,3.599,1898.0,1897.9,3.13288]
[1741937981612,1.329,1898.0,1897.9,6.34068]
[1741937981810,0.00792205,1898.1,1898.0,1.05382]
[1741937982001,0.00792205,1898.1,1898.0,2.42892]
[1741937982715,1.44212205,1898.1,1898.0,2.42892]
[1741937988313,0.00792205,1898.1,1898.0,2.42892]
[1741937989815,1.33312205,1898.1,1898.0,2.42892]
[1741937994421,2.38688205,1898.1,1898.0,2.42892]
[1741937997531,1.33312205,1898.1,1897.9,3.2078]
[1741937997719,3.16532,1898.0,1897.9,5.70025]
[1741937999125,3.16532,1898.0,1897.9,4.6464]
[1741937999333,3.16532,1898.0,1897.9,1.4386]
[1741937999629,3.16532,1898.0,1897.9,2.49248]
[1741938000225,3.16532,1898.0,1897.9,5.70028]
[1741938000530,1.4085,1898.0,1897.9,5.70028]
[1741938000732,2.46232,1898.0,1897.9,5.70028]
[1741938001031,1.4085,1898.0,1897.9,5.70028]
[1741938001419,1.4085,1898.0,1897.9,6.36480506]
[1741938002124,1.4085,1898.0,1897.9,5.70028]
[1741938002726,1.06169205,1898.1,1897.9,4.6464]
[1741938002932,1.42192205,1898.1,1898.0,3.81802]
[1741938003429,0.00792205,1898.1,1898.0,3.81802]
[1741938003832,1.414,1898.3,1898.2,1.05371]
[1741938004025,5.956,1898.8,1898.4,1.0536]
[1741938004221,5.956,1898.8,1898.2,3.2078]
[1741938004222,5.97455,1899.1,1899.0,1.05327]
[1741938004434,0.01855,1899.1,1899.0,1.05327]
[1741938004932,0.01855,1899.1,1899.0,2.42527]
[1741938005128,0.01855,1899.1,1899.0,1.372]
[1741938005337,1.43255,1899.1,1899.0,2.42527]
[1741938005735,0.01855,1899.1,1899.0,2.42527]
[1741938006532,1.42035,1899.1,1899.0,2.42527]
[1741938007843,0.6818,1899.4,1899.0,1.372]
[1741938008039,2.9578,1899.4,1899.3,1.0531]
[1741938008241,2.0836,1899.4,1899.3,1.0531]
[1741938008538,2.277,1899.6,1899.3,3.2078]
[1741938008741,2.37429,1899.5,1899.4,1.3485]
[1741938008936,1.3213,1899.5,1899.4,2.40154]
[1741938009336,2.37429,1899.5,1899.4,2.40154]
[1741938009539,1.3213,1899.5,1899.4,2.40154]
[1741938010435,0.6562,1899.7,1899.4,1.3485]
[1741938010733,0.6562,1899.7,1899.3,3.8904]
[1741938010734,2.277,1899.6,1899.5,2.40149]
[1741938010935,3.32993,1899.6,1899.5,2.40149]
[1741938011239,4.65123,1899.6,1899.5,2.40149]
[1741938011535,4.65123,1899.6,1899.5,1.3485]
[1741938012342,6.8061,1899.6,1899.2,0.7103]
[1741938012541,1.05308,1899.4,1899.2,1.76341]
[1741938012844,1.05308,1899.4,1899.3,2.3945]
[1741938013942,1.05301,1899.5,1899.4,1.05304]
[1741938014137,5.4848,1899.6,1899.3,1.3414]
[1741938014346,5.4848,1899.6,1899.3,2.39448]
[1741938014643,1.05301,1899.5,1899.4,1.05304]
[1741938014832,1.05301,1899.5,1899.4,1.3126]
[1741938016850,1.05301,1899.5,1899.4,2.36564]
[1741938017039,3.2078,1899.6,1899.4,1.3126]
[1741938017235,0.6562,1899.7,1899.6,1.05293]
[1741938017444,2.9282,1899.7,1899.5,1.9646]
[1741938017642,3.98112,1899.7,1899.6,1.05293]
[1741938017845,2.9282,1899.7,1899.6,2.36863]
[1741938018547,2.272,1899.7,1899.6,3.08573]
[1741938018847,3.32488,1899.7,1899.6,3.08573]
[1741938019147,2.272,1899.7,1899.6,3.08573]
[1741938019539,3.32488,1899.7,1899.6,3.08573]
[1741938020136,3.32488,1899.7,1899.6,2.0328]
[1741938020342,1.05283,1899.8,1899.7,1.05288]
[1741938020542,2.27,1899.8,1899.7,2.36858]
[1741938020940,3.32282,1899.8,1899.7,2.36858]
[1741938021448,3.32282,1899.8,1899.7,1.3157]
[1741938021650,1.05282,1899.8,1899.7,2.36858]
[1741938022553,3.32178,1899.9,1899.8,1.05282]
[1741938022753,3.32178,1899.9,1899.8,2.47762]
[1741938023448,0.6946,1900.0,1899.9,1.05277]
[1741938023653,4.01531,1900.0,1899.9,1.05277]
[1741938023946,1.05277,1899.9,1899.8,2.47761]
[1741938024355,4.01533,1900.0,1899.9,1.05277]
[1741938024547,4.01533,1900.0,1899.9,1.3871]
[1741938024753,5.35713,1900.0,1899.9,1.3871]
[1741938028056,4.3044,1900.0,1899.7,3.2078]
[1741938028353,4.5213,1899.9,1899.7,1.05286]
[1741938028551,2.36638,1899.8,1899.7,2.44167]
[1741938028760,2.36632,1899.8,1899.7,2.44167]
[1741938030151,2.9576,1900.0,1899.9,1.05277]
[1741938030358,4.3321,1900.0,1899.8,2.46178]
[1741938030558,1.3745,1899.9,1899.8,1.05278]
[1741938030759,1.3745,1899.9,1899.8,4.26058]
[1741938030953,1.3745,1899.9,1899.8,1.05278]
[1741938032362,2.42727,1899.9,1899.8,1.05278]
[1741938034062,1.3745,1899.9,1899.8,1.05278]
[1741938037961,3.8605,1900.1,1899.6,6.55719]
[1741938038266,1.3472,1900.0,1899.9,1.05277]
[1741938039758,1.3613,1900.1,1900.0,1.05271]
[1741938039759,2.257,1900.1,1900.0,1.05271]
[1741938039966,1.05274,1900.0,1899.9,1.05274]
[1741938040161,3.11074,1900.0,1899.9,0.00790077]
[1741938040366,3.80074,1900.0,1899.9,0.00790077]
[1741938040567,3.80074,1900.0,1899.9,1.06067077]
[1741938040968,6.05874,1900.0,1899.9,1.06067077]
[1741938041371,4.316,1900.0,1899.9,1.06067077]
[1741938041761,4.316,1900.0,1899.9,2.43717077]
[1741938041962,5.36871,1900.0,1899.9,2.43717077]
[1741938042470,4.316,1900.0,1899.9,2.43717077]
[1741938043063,5.36871,1900.0,1899.9,2.43717077]
[1741938043273,3.11071,1900.0,1899.9,2.43717077]
[1741938043570,2.058,1900.0,1899.9,2.43717077]
[1741938044172,3.11071,1900.0,1899.9,2.43717077]
[1741938044367,2.058,1900.0,1899.9,2.43717077]
[1741938044867,3.11071,1900.0,1899.9,0.71700077]
[1741938045070,3.11071,1900.0,1899.9,0.00790077]
[1741938045659,3.11071,1900.0,1899.9,1.31780077]
[1741938046268,3.11071,1900.0,1899.9,2.37057077]
[1741938046475,3.81361,1900.0,1899.9,2.37057077]
[1741938046674,3.81361,1900.0,1899.9,1.31780077]
[1741938047070,3.81361,1900.0,1899.9,2.37057077]
[1741938050878,3.81361,1900.0,1899.9,1.31780077]
[1741938052282,1.05284,1899.8,1899.5,5.84018]
[1741938052481,1.05284,1899.8,1899.7,2.47444]
[1741938052982,1.05282,1899.9,1899.8,1.05281]
[1741938053181,1.05282,1899.8,1899.7,2.47444]
[1741938053480,1.06064983,1899.9,1899.8,1.0528]
[1741938053681,0.00782983,1899.9,1899.7,1.4216]
[1741938053877,3.31082,1899.8,1899.7,2.47448]
[1741938055472,2.258,1899.8,1899.7,2.47448]
[1741938055878,3.31082,1899.8,1899.7,2.47448]
[1741938056579,1.05288,1899.7,1899.6,1.06079077]
[1741938056776,2.43418,1899.7,1899.6,1.06083077]
[1741938057284,2.43418,1899.7,1899.6,2.44313077]
[1741938058479,2.43418,1899.7,1899.6,1.39020077]
[1741938058879,3.31083,1899.8,1899.7,1.05288]
[1741938059087,3.99786,1899.8,1899.7,1.05288]
[1741938059671,3.99786,1899.8,1899.7,2.49178]
[1741938060075,2.945,1899.8,1899.7,2.49178]
[1741938060278,2.258,1899.8,1899.7,2.49178]
[1741938060687,3.31082,1899.8,1899.7,2.49178]
[1741938060886,3.31082,1899.8,1899.7,1.4389]
[1741938061077,3.31082,1899.8,1899.7,2.49178]
[1741938061278,2.258,1899.8,1899.7,2.49178]
[1741938061484,3.31082,1899.8,1899.7,2.49178]
[1741938062388,3.31082,1899.8,1899.7,1.4389]
[1741938063986,3.31082,1899.8,1899.7,2.49178]
[1741938064774,4.67562,1899.8,1899.7,2.49178]
[1741938064989,4.67562,1899.8,1899.7,1.4389]
[1741938065181,4.67562,1899.8,1899.7,2.49178]
[1741938069285,3.6228,1899.8,1899.7,2.49178]
[1741938069486,4.67562,1899.8,1899.7,2.49178]
[1741938070396,3.6228,1899.8,1899.7,2.49178]
[1741938070705,4.67562,1899.8,1899.7,2.49178]
[1741938071603,4.67562,1899.8,1899.7,1.4389]
[1741938072507,4.67562,1899.8,1899.7,2.49178]
[1741938073100,2.256,1899.8,1899.7,1.4389]
[1741938073409,3.30882,1899.8,1899.7,2.49174]
[1741938074410,3.30782,1899.8,1899.7,2.49174]
[1741938074602,2.255,1899.8,1899.7,2.49174]
[1741938075107,0.00782983,1899.9,1899.8,1.05282]
[1741938075405,0.00782983,1899.9,1899.8,2.36002]
[1741938075406,1e-08,1899.9,1899.8,2.36002]
[1741938082600,3.30777001,1899.9,1899.8,1.3072]
[1741938082909,4.69297001,1899.9,1899.8,2.36002]
[1741938083309,6.02387001,1899.9,1899.8,2.36002]
[1741938085211,6.02387001,1899.9,1899.8,1.3072]
[1741938085803,3.76887001,1899.9,1899.8,1.3072]
[1741938086111,3.76887001,1899.9,1899.8,4.86002]
[1741938086112,1e-08,1899.9,1899.8,4.86002]
[1741938086415,1e-08,1899.9,1899.8,2.36002]
[1741938094619,1e-08,1899.9,1899.8,5.56782]
[1741938096617,1e-08,1899.9,1899.8,5.98131915]
[1741938098123,1e-08,1899.9,1899.8,5.56782]
[1741938103223,1e-08,1899.9,1899.8,6.23026891]
[1741938107728,3.2078,1900.7,1900.6,1.05238]
[1741938108033,4.5294,1900.7,1900.6,1.05238]
[1741938108526,3.8685,1900.7,1900.6,1.05238]
[1741938109034,3.8685,1900.7,1900.6,2.36498]
[1741938109327,3.2078,1901.5,1901.4,1.05194]
[1741938109531,3.2078,1901.5,1900.6,12.49772842]
[1741938109532,3.2078,1901.5,1900.9,5.4698]
[1741938109723,1.385,1901.4,1901.3,0.00790077]
[1741938109928,3.09574,1901.4,1901.3,0.00790077]
[1741938110128,1.385,1901.4,1901.3,0.00790077]
[1741938110429,2.43694,1901.4,1901.3,0.00790077]
[1741938110625,4.70194,1901.4,1901.3,0.00790077]
[1741938110832,4.79028155,1901.4,1901.3,0.00790077]
[1741938111126,4.78928155,1901.4,1901.3,0.00790077]
[1741938111436,2.63012,1901.2,1900.3,3.2078]
[1741938111635,1.05238,1900.6,1900.5,1.4236]
[1741938112135,3.14333,1900.6,1900.4,1.4236]
[1741938112334,3.15123077,1900.6,1900.4,1.4236]
[1741938112536,1.3891,1900.5,1900.4,1.4236]
[1741938112735,1.3891,1900.5,1900.3,3.21570077]
[1741938113033,1.05249,1900.4,1900.3,4.52580077]
[1741938113236,1.05249,1900.4,1900.3,3.21570077]
[1741938113538,0.00790077,1900.6,1900.5,1.05243]
[1741938113733,0.00790077,1900.6,1900.5,4.26023]
[1741938113938,0.00790077,1900.6,1900.5,4.95413]
[1741938114239,0.00790077,1900.6,1900.4,0.6841]
[1741938114437,1.41900077,1900.6,1900.4,0.6841]
[1741938114634,2.44153,1900.5,1900.4,0.6841]
[1741938114830,2.44153,1900.5,1900.3,4.26820077]
[1741938115034,1.3891,1900.4,1900.3,4.26820077]
[1741938119537,2.44159,1900.4,1900.3,0.00790077]
[1741938120239,2.44159,1900.4,1900.3,1.06044077]
[1741938120542,2.44159,1900.4,1900.3,0.00790077]
[1741938120744,2.44159,1900.4,1900.3,1.06044077]
[1741938121243,2.44159,1900.4,1900.3,0.00790077]
[1741938121939,0.00790077,1900.6,1900.5,1.05243]
[1741938122138,0.00790077,1900.6,1900.5,4.26023]
[1741938122443,1.44220077,1900.6,1900.5,3.2078]
[1741938122645,3.19118077,1900.6,1900.5,3.2078]
[1741938122834,3.19118077,1900.6,1900.4,2.46477]
[1741938123029,3.15153,1900.5,1900.4,1.75587]
[1741938123342,1.05249,1900.4,1900.3,4.26823077]
[1741938123531,1.4343,1900.4,1900.3,4.26823077]
[1741938125538,1.4343,1900.4,1900.3,1.06043077]
[1741938126040,1.4343,1900.4,1900.3,2.47073077]
[1741938126237,2.48679,1900.4,1900.3,0.00790077]
[1741938126743,2.48679,1900.4,1900.3,1.41820077]
[1741938129345,0.00790077,1900.6,1900.3,4.04952077]
[1741938129537,1.05223,1900.9,1900.5,3.2078]
[1741938129845,1.05232,1900.7,1900.6,1.9576]
[1741938130038,1.05243,1900.5,1900.4,0.65974422]
[1741938130346,1.05243,1900.5,1900.3,11.55434077]
[1741938130544,1.05243,1900.5,1900.4,1.3081]
[1741938131647,1.05243,1900.5,1900.4,2.36059]
[1741938132541,1.05243,1900.5,1900.4,1.3081]
[1741938133437,1.05243,1900.5,1900.4,2.36059]
[1741938135748,1.3767,1900.6,1900.4,1.3081]
[1741938135947,2.289,1900.7,1900.6,1.05238]
[1741938136144,3.34132,1900.7,1900.6,2.41478]
[1741938136851,3.34132,1900.7,1900.6,1.3624]
[1741938137052,3.34132,1900.7,1900.6,2.41478]
[1741938137944,1.3458,1900.9,1900.6,2.41478]
[1741938138149,3.6348,1900.9,1900.7,1.3545]
[1741938138344,1.05227,1900.8,1900.7,1.3545]
[1741938139150,1.05227,1900.8,1900.7,2.40682]
[1741938139450,1.05227,1900.8,1900.7,1.3545]
[1741938141147,1.05227,1900.8,1900.7,2.40682]
[1741938141546,1.05227,1900.8,1900.7,1.3545]
[1741938143655,1.05227,1900.8,1900.7,2.40682]
[1741938144352,3.6318,1900.9,1900.7,1.3545]
[1741938144553,4.68403,1900.9,1900.8,2.45767]
[1741938146054,3.589,1901.0,1900.8,1.4054]
[1741938146250,4.64117,1901.0,1900.9,2.46671]
[1741938146455,3.33417,1901.0,1900.9,2.46671]
[1741938148351,2.282,1901.0,1900.9,2.46671]
[1741938148552,1.05216,1901.0,1900.9,2.46671]
[1741938150161,2.28,1901.1,1900.9,2.46671]
[1741938150162,1.05211,1901.1,1901.0,1.05216]
[1741938150362,3.33011,1901.1,1901.0,2.43956]
[1741938151358,1.4087,1901.2,1901.0,1.3874]
[1741938151557,4.73877,1901.2,1901.1,1.0521]
[1741938152459,3.6867,1901.2,1901.1,1.0521]
[1741938152648,4.73875,1901.2,1901.1,1.7063]
[1741938153458,2.46075,1901.2,1901.1,1.7063]
[1741938153656,2.46075,1901.2,1901.1,2.4211]
[1741938154553,2.46075,1901.2,1901.1,1.369]
[1741938154963,1.0521,1901.1,1901.0,1.3874]
[1741938155361,1.0521,1901.1,1901.0,2.43956]
[1741938155555,1.0521,1901.1,1901.0,1.3874]
[1741938157358,1.0521,1901.1,1901.0,2.43956]
[1741938157757,1.0521,1901.1,1901.0,1.3874]
[1741938158258,5.956,1901.8,1901.0,1.3874]
[1741938158464,3.2078,1902.9,1901.6,3.2078]
[1741938158659,15.816,1903.4,1902.7,3.2078]
[1741938158660,1.05087,1903.4,1902.7,3.2078]
[1741938158861,3.2078,1903.7,1903.2,1.05094]
[1741938159262,3.2078,1903.5,1903.2,1.3932]
[1741938159457,1.05094,1903.2,1903.1,0.00790077]
[1741938159768,34.17401536,1903.3,1903.1,0.00790077]
[1741938160260,30.96621536,1903.3,1903.1,0.00790077]
[1741938160459,5.6738,1903.2,1902.5,3.2078]
[1741938160659,1.0512,1902.8,1902.6,1.3932]
[1741938161159,1.05113,1902.9,1902.7,3.2078]
[1741938161460,1.05119,1902.8,1902.7,3.2078]
[1741938161665,3.2078,1903.1,1902.6,1.40110077]
[1741938162057,1.05118,1902.8,1902.6,1.40110077]
[1741938162253,2.466,1903.2,1902.8,1.05113]
[1741938162457,1.051,1903.1,1902.9,4.522]
[1741938162954,1.05101,1903.1,1902.9,4.522]
[1741938163152,3.21570077,1903.4,1902.9,4.522]
[1741938163362,3.21570077,1903.4,1903.0,0.671]
[1741938163563,3.21570077,1903.4,1903.3,3.2078]
[1741938163564,0.00790077,1903.4,1903.3,3.2078]
[1741938163760,0.00790077,1903.4,1903.3,5.57289]
[1741938163966,0.00790077,1903.4,1903.3,4.522]
[1741938164161,0.00790077,1903.4,1903.3,5.57289]
[1741938164364,0.00790077,1903.4,1903.3,4.522]
[1741938164858,0.00790077,1903.4,1903.3,5.57289]
[1741938165054,3.2078,1904.5,1903.3,7.022]
[1741938165264,0.6778,1904.9,1904.3,3.2078]
[1741938165466,3.2078,1904.7,1904.1,3.2078]
[1741938165664,3.906,1904.6,1904.1,3.2078]
[1741938165863,1.05036,1904.3,1904.1,3.2078]
[1741938166065,3.2078,1905.2,1904.2,2.616]
[1741938166271,3.2078,1905.2,1905.1,3.2078]
[1741938166567,0.02509648,1905.7,1905.1,3.2078]
[1741938166865,3.27783,1905.6,1905.1,3.2078]
[1741938167073,2.562,1905.5,1905.3,3.2078]
[1741938167273,1.86583,1905.5,1905.3,3.2078]
[1741938167563,1.04984,1905.2,1905.1,3.2078]
[1741938167765,1.04984,1905.2,1905.0,0.0078798]
[1741938167766,1.04989,1905.1,1905.0,0.0078798]
[1741938168067,2.51863,1905.3,1905.0,0.0078798]
[1741938168270,5.5057,1905.2,1905.0,3.2156798]
[1741938168475,3.21203,1905.2,1905.0,3.2156798]
[1741938168668,1.86583,1905.1,1905.0,3.2156798]
[1741938168966,1.04989,1905.1,1905.0,3.2156798]
[1741938169175,2.91572,1905.1,1905.0,0.0078798]
[1741938169364,2.91572,1905.1,1904.4,1.3868]
[1741938169365,8.91983,1905.1,1904.6,3.2078]
[1741938169570,1.05022,1904.5,1904.4,4.5946]
[1741938169770,2.91605,1904.5,1904.4,4.5946]
[1741938170967,0.00780994,1904.6,1904.4,4.5946]
[1741938171173,0.00780994,1904.6,1904.5,1.05022]
[1741938171377,0.00780994,1904.6,1904.5,2.38342]
[1741938171667,0.00780994,1904.6,1904.5,1.3332]
[1741938172264,0.00780994,1904.6,1904.5,2.38342]
[1741938172767,0.00780994,1904.6,1904.5,1.3332]
[1741938173962,0.00780994,1904.6,1904.5,2.38342]
[1741938176067,0.00780994,1904.6,1904.5,1.3332]
[1741938176268,1.05797994,1904.6,1904.5,1.3332]
[1741938176577,0.00780994,1904.6,1904.5,2.38342]
[1741938176867,0.00780994,1904.6,1904.5,1.3332]
[1741938177076,0.00780994,1904.6,1904.5,2.38342]
[1741938181171,0.02509648,1905.7,1904.6,3.2078]
[1741938181475,0.02509648,1905.7,1905.5,4.25747]
[1741938181476,3.25113,1905.6,1905.5,4.25747]
[1741938182676,0.02509648,1905.7,1905.6,1.04962]
[1741938182877,0.02509648,1905.7,1905.6,7.02762]
[1741938182878,1.89092648,1905.7,1905.6,7.02762]
[1741938183074,1.89092648,1905.7,1905.6,5.978]
[1741938183277,1.04921,1906.4,1905.8,2.62378]
[1741938183476,1.04922,1906.4,1906.0,3.2078]
[1741938183684,1.86583,1906.3,1906.1,1.2985]
[1741938183878,4.27004,1906.4,1906.2,3.2078]
[1741938184079,3.22083,1906.4,1906.2,3.2078]
[1741938184381,1.86583,1906.3,1906.2,3.2078]